[Event "Titled Tuesday Blitz December 06 Late 2022"]
[White "Tomaszewski, Kacper"]
[Black "Goltsev, Dmitry"]
[WhiteFideId "1127373"]
[BlackFideId "24176710"]
[WhiteElo "2211"]
[BlackElo "2327"]
[Result "0-1"]
[Round "01"]
[TimeControl "180+1"]
[Date "2022.12.07"]
[WhiteClock "0:01:10"]
[BlackClock "0:02:41"]

1. Nf3 {[%clk 0:02:58]}  d5 {[%clk 0:02:54]} 2. d4 {[%clk 0:02:57]}  c6 {[%clk 0:02:55]} 3. c4 {[%clk 0:02:56]}  Nf6 {[%clk 0:02:55]} 4. cxd5 {[%clk 0:02:55]}  cxd5 {[%clk 0:02:56]} 5. Nc3 {[%clk 0:02:55]}  Nc6 {[%clk 0:02:57]} 6. Bf4 {[%clk 0:02:56]}  Bf5 {[%clk 0:02:58]} 7. e3 {[%clk 0:02:55]}  e6 {[%clk 0:02:58]} 8. Bd3 {[%clk 0:02:47]}  Bxd3 {[%clk 0:02:56]} 9. Qxd3 {[%clk 0:02:48]}  Bd6 {[%clk 0:02:57]} 10. O-O {[%clk 0:02:46]}  O-O {[%clk 0:02:57]} 11. Ne5 {[%clk 0:02:37]}  Ne7 {[%clk 0:02:53]} 12. Rfc1 {[%clk 0:02:33]}  Ng6 {[%clk 0:02:52]} 13. Nxg6 {[%clk 0:02:31]}  hxg6 {[%clk 0:02:53]} 14. Bxd6 {[%clk 0:02:30]}  Qxd6 {[%clk 0:02:54]} 15. Nb5 {[%clk 0:02:30]}  Qb6 {[%clk 0:02:54]} 16. a4 {[%clk 0:02:08]}  a6 {[%clk 0:02:52]} 17. Nc3 {[%clk 0:02:03]}  Rac8 {[%clk 0:02:47]} 18. a5 {[%clk 0:02:03]}  Qxb2 {[%clk 0:02:44]} 19. Rab1 {[%clk 0:01:53]}  Qa3 {[%clk 0:02:44]} 20. Qd2 {[%clk 0:01:28]}  Qxa5 {[%clk 0:02:43]} 21. Rxb7 {[%clk 0:01:24]}  Ne4 {[%clk 0:02:42]} 22. Qe1 {[%clk 0:01:10]}  Rxc3 {[%clk 0:02:41]} 0-1


[Site "https://www.chess.com"]

[Event "Titled Tuesday Blitz December 06 Late 2022"]
[White "Toncheva, Nadya"]
[Black "Tang, Andrew"]
[WhiteFideId "2924056"]
[BlackFideId "2059630"]
[WhiteElo "2101"]
[BlackElo "2582"]
[Result "0-1"]
[Round "01"]
[TimeControl "180+1"]
[Date "2022.12.06"]
[WhiteClock "0:00:07"]
[BlackClock "0:00:31"]

1. e4 {[%clk 0:03:00]}  e5 {[%clk 0:02:45]} 2. Nf3 {[%clk 0:03:00]}  Nc6 {[%clk 0:02:46]} 3. Bb5 {[%clk 0:03:01]}  g6 {[%clk 0:02:44]} 4. c3 {[%clk 0:02:57]}  a6 {[%clk 0:02:44]} 5. Ba4 {[%clk 0:02:57]}  Bg7 {[%clk 0:02:33]} 6. O-O {[%clk 0:02:56]}  b5 {[%clk 0:02:33]} 7. Bc2 {[%clk 0:02:56]}  d6 {[%clk 0:02:33]} 8. d4 {[%clk 0:02:55]}  exd4 {[%clk 0:02:32]} 9. cxd4 {[%clk 0:02:56]}  Bg4 {[%clk 0:02:32]} 10. Be3 {[%clk 0:02:47]}  Bxf3 {[%clk 0:02:32]} 11. gxf3 {[%clk 0:02:45]}  Qf6 {[%clk 0:02:32]} 12. Nc3 {[%clk 0:02:14]}  Nge7 {[%clk 0:02:32]} 13. Bb3 {[%clk 0:01:53]}  Nxd4 {[%clk 0:02:14]} 14. Bxd4 {[%clk 0:01:51]}  Qxd4 {[%clk 0:02:14]} 15. Qxd4 {[%clk 0:01:51]}  Bxd4 {[%clk 0:02:15]} 16. Rfd1 {[%clk 0:01:48]}  Bb6 {[%clk 0:01:36]} 17. Rac1 {[%clk 0:01:46]}  Rd8 {[%clk 0:01:30]} 18. Nd5 {[%clk 0:01:46]}  Nxd5 {[%clk 0:01:30]} 19. Bxd5 {[%clk 0:01:46]}  Ke7 {[%clk 0:01:31]} 20. Bc6 {[%clk 0:01:44]}  Rhf8 {[%clk 0:01:30]} 21. Kf1 {[%clk 0:01:42]}  b4 {[%clk 0:01:24]} 22. Ke2 {[%clk 0:01:39]}  f5 {[%clk 0:01:21]} 23. Rc4 {[%clk 0:01:30]}  a5 {[%clk 0:01:21]} 24. exf5 {[%clk 0:01:23]}  Rxf5 {[%clk 0:01:21]} 25. Rd5 {[%clk 0:01:17]}  Kf6 {[%clk 0:01:10]} 26. Re4 {[%clk 0:01:11]}  Rf8 {[%clk 0:01:02]} 27. Rxf5+ {[%clk 0:01:04]}  gxf5 {[%clk 0:01:02]} 28. Re8 {[%clk 0:00:56]}  Rxe8+ {[%clk 0:00:54]} 29. Bxe8 {[%clk 0:00:57]}  c5 {[%clk 0:00:54]} 30. Bb5 {[%clk 0:00:48]}  d5 {[%clk 0:00:53]} 31. b3 {[%clk 0:00:45]}  Bc7 {[%clk 0:00:52]} 32. h3 {[%clk 0:00:42]}  Ke5 {[%clk 0:00:52]} 33. Ke3 {[%clk 0:00:36]}  f4+ {[%clk 0:00:48]} 34. Kd3 {[%clk 0:00:32]}  Bd8 {[%clk 0:00:48]} 35. Bd7 {[%clk 0:00:30]}  Bh4 {[%clk 0:00:48]} 36. Bc8 {[%clk 0:00:26]}  Bxf2 {[%clk 0:00:48]} 37. Bg4 {[%clk 0:00:24]}  Kd6 {[%clk 0:00:48]} 38. Bf5 {[%clk 0:00:24]}  h6 {[%clk 0:00:48]} 39. Bg4 {[%clk 0:00:24]}  Kc6 {[%clk 0:00:48]} 40. Bh5 {[%clk 0:00:24]}  Kd6 {[%clk 0:00:43]} 41. Be8 {[%clk 0:00:24]}  Ke5 {[%clk 0:00:42]} 42. Bd7 {[%clk 0:00:24]}  Be1 {[%clk 0:00:42]} 43. Bg4 {[%clk 0:00:24]}  Kf6 {[%clk 0:00:42]} 44. Bc8 {[%clk 0:00:23]}  Kg5 {[%clk 0:00:42]} 45. Bd7 {[%clk 0:00:23]}  Kh4 {[%clk 0:00:42]} 46. Be6 {[%clk 0:00:21]}  Kg3 {[%clk 0:00:41]} 47. Ke2 {[%clk 0:00:18]}  Bc3 {[%clk 0:00:41]} 48. Bf5 {[%clk 0:00:15]}  Bd4 {[%clk 0:00:40]} 49. Bg4 {[%clk 0:00:15]}  c4 {[%clk 0:00:40]} 50. Be6 {[%clk 0:00:12]}  Be3 {[%clk 0:00:33]} 51. Bxd5 {[%clk 0:00:11]}  c3 {[%clk 0:00:31]} 52. Be4 {[%clk 0:00:10]}  Kxh3 {[%clk 0:00:31]} 53. Bg6 {[%clk 0:00:09]}  Kg3 {[%clk 0:00:30]} 54. Be4 {[%clk 0:00:08]}  h5 {[%clk 0:00:31]} 55. Bf5 {[%clk 0:00:08]}  h4 {[%clk 0:00:31]} 56. Bg4 {[%clk 0:00:07]}  h3 {[%clk 0:00:31]} 0-1


[Site "https://www.chess.com"]

[Event "Titled Tuesday Blitz December 06 Late 2022"]
[White "Tymrakiewicz, Rafal"]
[Black "Quizon, Daniel"]
[WhiteFideId "1108832"]
[BlackFideId "5217911"]
[WhiteElo "2139"]
[BlackElo "2385"]
[Result "0-1"]
[Round "01"]
[TimeControl "180+1"]
[Date "2022.12.07"]
[WhiteClock "0:00:03"]
[BlackClock "0:00:57"]

1. d4 {[%clk 0:02:57]}  Nf6 {[%clk 0:02:59]} 2. Bg5 {[%clk 0:02:57]}  Ne4 {[%clk 0:02:59]} 3. Bf4 {[%clk 0:02:57]}  g6 {[%clk 0:03:00]} 4. f3 {[%clk 0:02:55]}  Nf6 {[%clk 0:03:00]} 5. e4 {[%clk 0:02:55]}  d6 {[%clk 0:03:00]} 6. Qd2 {[%clk 0:02:55]}  Bg7 {[%clk 0:03:00]} 7. Nc3 {[%clk 0:02:51]}  O-O {[%clk 0:03:00]} 8. Bh6 {[%clk 0:02:48]}  c5 {[%clk 0:03:00]} 9. Bxg7 {[%clk 0:02:48]}  Kxg7 {[%clk 0:03:01]} 10. O-O-O {[%clk 0:02:48]}  cxd4 {[%clk 0:02:58]} 11. Qxd4 {[%clk 0:02:48]}  Nc6 {[%clk 0:02:59]} 12. Qd2 {[%clk 0:02:47]}  Be6 {[%clk 0:02:59]} 13. Nge2 {[%clk 0:02:42]}  Rc8 {[%clk 0:02:58]} 14. Nf4 {[%clk 0:02:39]}  Qa5 {[%clk 0:02:53]} 15. Nxe6+ {[%clk 0:02:36]}  fxe6 {[%clk 0:02:54]} 16. Kb1 {[%clk 0:02:36]}  e5 {[%clk 0:02:52]} 17. Nb5 {[%clk 0:02:13]}  Qxd2 {[%clk 0:02:32]} 18. Rxd2 {[%clk 0:02:13]}  a6 {[%clk 0:02:33]} 19. Nc3 {[%clk 0:02:11]}  h5 {[%clk 0:02:32]} 20. h4 {[%clk 0:02:07]}  Nd4 {[%clk 0:02:29]} 21. Ne2 {[%clk 0:02:05]}  Ne6 {[%clk 0:02:25]} 22. g3 {[%clk 0:02:01]}  Rc7 {[%clk 0:02:20]} 23. Bh3 {[%clk 0:02:01]}  Nc5 {[%clk 0:02:20]} 24. Nc3 {[%clk 0:01:52]}  b5 {[%clk 0:02:20]} 25. a3 {[%clk 0:01:47]}  Rb8 {[%clk 0:02:07]} 26. Nd5 {[%clk 0:01:28]}  Nxd5 {[%clk 0:02:05]} 27. Rxd5 {[%clk 0:01:29]}  b4 {[%clk 0:02:06]} 28. Ka2 {[%clk 0:01:12]}  Rcb7 {[%clk 0:01:59]} 29. b3 {[%clk 0:01:05]}  bxa3 {[%clk 0:01:43]} 30. Kxa3 {[%clk 0:01:02]}  a5 {[%clk 0:01:38]} 31. Rb1 {[%clk 0:00:59]}  Rf8 {[%clk 0:01:29]} 32. Bg2 {[%clk 0:00:56]}  Ra7 {[%clk 0:01:29]} 33. Rbd1 {[%clk 0:00:44]}  Ne6 {[%clk 0:01:27]} 34. R1d2 {[%clk 0:00:30]}  Rb8 {[%clk 0:01:22]} 35. Bh3 {[%clk 0:00:29]}  Nc7 {[%clk 0:01:21]} 36. f4 {[%clk 0:00:21]}  exf4 {[%clk 0:01:19]} 37. Rg5 {[%clk 0:00:18]}  a4 {[%clk 0:01:17]} 38. b4 {[%clk 0:00:10]}  Nb5+ {[%clk 0:01:16]} 39. Rxb5 {[%clk 0:00:10]}  Rxb5 {[%clk 0:01:15]} 40. gxf4 {[%clk 0:00:11]}  Rc7 {[%clk 0:01:11]} 41. Bf1 {[%clk 0:00:10]}  Rc3+ {[%clk 0:01:09]} 42. Kb2 {[%clk 0:00:09]}  Rb8 {[%clk 0:01:10]} 43. Kxc3 {[%clk 0:00:09]}  a3 {[%clk 0:01:06]} 44. Bc4 {[%clk 0:00:10]}  Rf8 {[%clk 0:01:03]} 45. f5 {[%clk 0:00:09]}  gxf5 {[%clk 0:01:03]} 46. Rg2+ {[%clk 0:00:10]}  Kf6 {[%clk 0:01:02]} 47. exf5 {[%clk 0:00:10]}  Rc8 {[%clk 0:01:02]} 48. Kb3 {[%clk 0:00:09]}  a2 {[%clk 0:01:02]} 49. Rg1 {[%clk 0:00:09]}  Ra8 {[%clk 0:01:02]} 50. Ra1 {[%clk 0:00:08]}  Kxf5 {[%clk 0:01:01]} 51. Rxa2 {[%clk 0:00:09]}  Rb8 {[%clk 0:01:02]} 52. Ra1 {[%clk 0:00:08]}  Kg4 {[%clk 0:01:00]} 53. Re1 {[%clk 0:00:09]}  e5 {[%clk 0:01:00]} 54. Rd1 {[%clk 0:00:09]}  Rb6 {[%clk 0:01:00]} 55. Be6+ {[%clk 0:00:08]}  Kxh4 {[%clk 0:01:00]} 56. c4 {[%clk 0:00:09]}  Kg5 {[%clk 0:01:01]} 57. b5 {[%clk 0:00:10]}  Kf6 {[%clk 0:01:00]} 58. Bd5 {[%clk 0:00:10]}  Ke7 {[%clk 0:01:01]} 59. Rh1 {[%clk 0:00:10]}  Rb8 {[%clk 0:01:00]} 60. Rxh5 {[%clk 0:00:10]}  Rf8 {[%clk 0:01:00]} 61. Rh7+ {[%clk 0:00:10]}  Kd8 {[%clk 0:01:00]} 62. b6 {[%clk 0:00:10]}  Kc8 {[%clk 0:01:01]} 63. Rc7+ {[%clk 0:00:08]}  Kb8 {[%clk 0:01:01]} 64. Rb7+ {[%clk 0:00:08]}  Kc8 {[%clk 0:01:01]} 65. Ra7 {[%clk 0:00:08]}  Rf1 {[%clk 0:01:01]} 66. Kb4 {[%clk 0:00:05]}  Rb1+ {[%clk 0:00:59]} 67. Ka5 {[%clk 0:00:05]}  e4 {[%clk 0:00:58]} 68. Ra8+ {[%clk 0:00:05]}  Kd7 {[%clk 0:00:59]} 69. Ra7+ {[%clk 0:00:04]}  Kd8 {[%clk 0:00:58]} 70. Rf7 {[%clk 0:00:04]}  e3 {[%clk 0:00:58]} 71. Rf6 {[%clk 0:00:04]}  e2 {[%clk 0:00:58]} 72. Rxd6+ {[%clk 0:00:03]}  Kc8 {[%clk 0:00:58]} 73. Rc6+ {[%clk 0:00:04]}  Kd7 {[%clk 0:00:58]} 74. Rc7+ {[%clk 0:00:03]}  Kd8 {[%clk 0:00:57]} 0-1


[Site "https://www.chess.com"]

[Event "Titled Tuesday Blitz December 06 Late 2022"]
[White "Urbina Perez, Juan Antonio"]
[Black "Tanenbaum, Zachary"]
[WhiteFideId "2217368"]
[BlackFideId "2060850"]
[WhiteElo "2197"]
[BlackElo "2175"]
[Result "0-1"]
[Round "01"]
[TimeControl "180+1"]
[Date "2022.12.07"]
[WhiteClock "0:00:45"]
[BlackClock "0:01:36"]

1. d4 {[%clk 0:02:56]}  d5 {[%clk 0:03:00]} 2. c4 {[%clk 0:02:55]}  dxc4 {[%clk 0:03:00]} 3. Nf3 {[%clk 0:02:53]}  Nf6 {[%clk 0:03:01]} 4. e3 {[%clk 0:02:54]}  Bg4 {[%clk 0:03:01]} 5. Bxc4 {[%clk 0:02:53]}  e6 {[%clk 0:03:02]} 6. O-O {[%clk 0:02:52]}  Nbd7 {[%clk 0:03:01]} 7. Nc3 {[%clk 0:02:48]}  Bb4 {[%clk 0:02:58]} 8. h3 {[%clk 0:02:39]}  Bh5 {[%clk 0:02:57]} 9. Be2 {[%clk 0:02:37]}  O-O {[%clk 0:02:55]} 10. Qb3 {[%clk 0:02:37]}  c5 {[%clk 0:02:54]} 11. dxc5 {[%clk 0:02:33]}  a5 {[%clk 0:02:54]} 12. a3 {[%clk 0:02:30]}  Nxc5 {[%clk 0:02:52]} 13. Qc4 {[%clk 0:02:16]}  Bxc3 {[%clk 0:02:47]} 14. Qxc3 {[%clk 0:02:16]}  Rc8 {[%clk 0:02:40]} 15. Rd1 {[%clk 0:02:11]}  Qb6 {[%clk 0:02:24]} 16. b4 {[%clk 0:01:50]}  Na4 {[%clk 0:01:54]} 17. Qd4 {[%clk 0:01:48]}  Qc7 {[%clk 0:01:45]} 18. bxa5 {[%clk 0:01:00]}  Nc3 {[%clk 0:01:45]} 19. Re1 {[%clk 0:00:54]}  Rfd8 {[%clk 0:01:40]} 20. Qb6 {[%clk 0:00:53]}  Nxe2+ {[%clk 0:01:39]} 21. Rxe2 {[%clk 0:00:52]}  Rd1+ {[%clk 0:01:37]} 22. Re1 {[%clk 0:00:47]}  Bxf3 {[%clk 0:01:37]} 23. Qxc7 {[%clk 0:00:45]}  Rxe1+ {[%clk 0:01:36]} 0-1


[Site "https://www.chess.com"]

[Event "Titled Tuesday Blitz December 06 Late 2022"]
[White "Van Dael, Siem"]
[Black "Kavutskiy, Konstantin"]
[WhiteFideId "1049771"]
[BlackFideId "2026384"]
[WhiteElo "2336"]
[BlackElo "2386"]
[Result "0-1"]
[Round "01"]
[TimeControl "180+1"]
[Date "2022.12.07"]
[WhiteClock "0:00:06"]
[BlackClock "0:00:15"]

1. e4 {[%clk 0:02:59]}  Nc6 {[%clk 0:02:58]} 2. Nf3 {[%clk 0:02:54]}  d6 {[%clk 0:02:58]} 3. d4 {[%clk 0:02:52]}  Nf6 {[%clk 0:02:59]} 4. Bd3 {[%clk 0:02:50]}  g6 {[%clk 0:02:59]} 5. O-O {[%clk 0:02:48]}  Bg7 {[%clk 0:02:59]} 6. c3 {[%clk 0:02:48]}  O-O {[%clk 0:02:59]} 7. h3 {[%clk 0:02:47]}  e5 {[%clk 0:02:59]} 8. Re1 {[%clk 0:02:44]}  h6 {[%clk 0:02:53]} 9. Nbd2 {[%clk 0:02:42]}  Re8 {[%clk 0:02:51]} 10. d5 {[%clk 0:02:32]}  Ne7 {[%clk 0:02:50]} 11. Nf1 {[%clk 0:02:33]}  Rf8 {[%clk 0:02:49]} 12. Ng3 {[%clk 0:02:33]}  Ne8 {[%clk 0:02:46]} 13. Bd2 {[%clk 0:02:32]}  Kh7 {[%clk 0:02:45]} 14. Nh2 {[%clk 0:02:25]}  f5 {[%clk 0:02:41]} 15. exf5 {[%clk 0:02:25]}  gxf5 {[%clk 0:02:41]} 16. Nh5 {[%clk 0:02:25]}  Ng6 {[%clk 0:02:30]} 17. Qc1 {[%clk 0:02:16]}  Qh4 {[%clk 0:02:21]} 18. Nxg7 {[%clk 0:02:16]}  Nxg7 {[%clk 0:02:18]} 19. Nf3 {[%clk 0:02:15]}  Qh5 {[%clk 0:02:09]} 20. Be2 {[%clk 0:02:15]}  f4 {[%clk 0:02:00]} 21. Bd1 {[%clk 0:01:57]}  Qf5 {[%clk 0:01:51]} 22. Bc2 {[%clk 0:01:56]}  Qf7 {[%clk 0:01:50]} 23. Nh4 {[%clk 0:01:54]}  Nf5 {[%clk 0:01:46]} 24. Nxf5 {[%clk 0:01:46]}  Bxf5 {[%clk 0:01:46]} 25. Bxf5 {[%clk 0:01:46]}  Qxf5 {[%clk 0:01:47]} 26. Qb1 {[%clk 0:01:46]}  Nh4 {[%clk 0:01:39]} 27. Qxf5+ {[%clk 0:01:45]}  Rxf5 {[%clk 0:01:40]} 28. Kh2 {[%clk 0:01:39]}  Rg8 {[%clk 0:01:39]} 29. Rg1 {[%clk 0:01:39]}  Rfg5 {[%clk 0:01:36]} 30. Kh1 {[%clk 0:01:14]}  Rxg2 {[%clk 0:01:33]} 31. Rxg2 {[%clk 0:01:15]}  Rxg2 {[%clk 0:01:33]} 32. Rf1 {[%clk 0:01:15]}  Kg6 {[%clk 0:01:24]} 33. Be1 {[%clk 0:01:14]}  f3 {[%clk 0:01:11]} 34. Bd2 {[%clk 0:01:14]}  e4 {[%clk 0:01:07]} 35. Be3 {[%clk 0:01:14]}  Nf5 {[%clk 0:01:07]} 36. Bxa7 {[%clk 0:01:13]}  b6 {[%clk 0:01:04]} 37. Rg1 {[%clk 0:01:12]}  e3 {[%clk 0:00:32]} 38. fxe3 {[%clk 0:01:07]}  Nxe3 {[%clk 0:00:30]} 39. Bb8 {[%clk 0:00:57]}  Kf5 {[%clk 0:00:22]} 40. Bxc7 {[%clk 0:00:53]}  Rxb2 {[%clk 0:00:20]} 41. Bxd6 {[%clk 0:00:35]}  f2 {[%clk 0:00:20]} 42. Rc1 {[%clk 0:00:22]}  f1=Q+ {[%clk 0:00:20]} 43. Rxf1+ {[%clk 0:00:23]}  Nxf1 {[%clk 0:00:20]} 44. c4 {[%clk 0:00:23]}  Ne3 {[%clk 0:00:20]} 45. c5 {[%clk 0:00:18]}  bxc5 {[%clk 0:00:20]} 46. Bxc5 {[%clk 0:00:19]}  Nxd5 {[%clk 0:00:20]} 47. Bf8 {[%clk 0:00:18]}  Ke4 {[%clk 0:00:19]} 48. Bxh6 {[%clk 0:00:18]}  Kf3 {[%clk 0:00:20]} 49. Kg1 {[%clk 0:00:17]}  Nf4 {[%clk 0:00:17]} 50. h4 {[%clk 0:00:13]}  Nh3+ {[%clk 0:00:16]} 51. Kh1 {[%clk 0:00:14]}  Kg3 {[%clk 0:00:16]} 52. Bf4+ {[%clk 0:00:05]}  Nxf4 {[%clk 0:00:15]} 53. h5 {[%clk 0:00:06]}  Rb1# {[%clk 0:00:15]} 0-1


[Site "https://www.chess.com"]

[Event "Titled Tuesday Blitz December 06 Late 2022"]
[White "Ward, Ieuan C"]
[Black "Yi, Richard"]
[WhiteFideId "406627"]
[BlackFideId "2079518"]
[WhiteElo "2306"]
[BlackElo "2147"]
[Result "1-0"]
[Round "01"]
[TimeControl "180+1"]
[Date "2022.12.07"]
[WhiteClock "0:01:40"]
[BlackClock "0:01:09"]

1. d4 {[%clk 0:03:00]}  Nf6 {[%clk 0:02:58]} 2. c4 {[%clk 0:03:01]}  g6 {[%clk 0:02:58]} 3. Nc3 {[%clk 0:03:01]}  d5 {[%clk 0:02:59]} 4. cxd5 {[%clk 0:03:01]}  Nxd5 {[%clk 0:02:59]} 5. e4 {[%clk 0:03:02]}  Nxc3 {[%clk 0:03:00]} 6. bxc3 {[%clk 0:03:02]}  Bg7 {[%clk 0:03:01]} 7. Nf3 {[%clk 0:03:03]}  c5 {[%clk 0:03:01]} 8. Rb1 {[%clk 0:03:04]}  O-O {[%clk 0:03:00]} 9. Be2 {[%clk 0:03:04]}  Nc6 {[%clk 0:03:00]} 10. d5 {[%clk 0:03:04]}  Ne5 {[%clk 0:03:01]} 11. Qc2 {[%clk 0:03:02]}  Nxf3+ {[%clk 0:02:50]} 12. Bxf3 {[%clk 0:03:03]}  f5 {[%clk 0:02:50]} 13. O-O {[%clk 0:03:02]}  Qc7 {[%clk 0:02:39]} 14. c4 {[%clk 0:02:54]}  fxe4 {[%clk 0:02:25]} 15. Bxe4 {[%clk 0:02:55]}  Bf5 {[%clk 0:02:24]} 16. Bb2 {[%clk 0:02:46]}  Bxb2 {[%clk 0:02:15]} 17. Rxb2 {[%clk 0:02:46]}  b6 {[%clk 0:02:09]} 18. Re1 {[%clk 0:02:27]}  Bxe4 {[%clk 0:01:52]} 19. Qxe4 {[%clk 0:02:25]}  Rf4 {[%clk 0:01:39]} 20. Qe6+ {[%clk 0:02:15]}  Kf8 {[%clk 0:01:34]} 21. Rb3 {[%clk 0:02:03]}  Rd8 {[%clk 0:01:21]} 22. g3 {[%clk 0:01:51]}  Rf7 {[%clk 0:01:12]} 23. Rbe3 {[%clk 0:01:44]}  Rd6 {[%clk 0:01:11]} 24. Qe5 {[%clk 0:01:42]}  Qd7 {[%clk 0:01:09]} 25. Qh8# {[%clk 0:01:40]} 1-0


[Site "https://www.chess.com"]

[Event "Titled Tuesday Blitz December 06 Late 2022"]
[White "Yoo, Christopher Woojin"]
[Black "Pham, Khoi"]
[WhiteFideId "30909694"]
[BlackFideId "1054988"]
[WhiteElo "2463"]
[BlackElo "2492"]
[Result "1-0"]
[Round "01"]
[TimeControl "180+1"]
[Date "2022.12.06"]
[WhiteClock "0:00:06"]
[BlackClock "0:00:02"]

1. g3 {[%clk 0:03:00]}  f5 {[%clk 0:02:57]} 2. d4 {[%clk 0:02:56]}  Nf6 {[%clk 0:02:57]} 3. Bg2 {[%clk 0:02:56]}  g6 {[%clk 0:02:58]} 4. Nf3 {[%clk 0:02:57]}  Bg7 {[%clk 0:02:58]} 5. O-O {[%clk 0:02:57]}  O-O {[%clk 0:02:59]} 6. c4 {[%clk 0:02:57]}  d6 {[%clk 0:02:59]} 7. Nc3 {[%clk 0:02:57]}  Qe8 {[%clk 0:02:59]} 8. d5 {[%clk 0:02:57]}  Na6 {[%clk 0:02:59]} 9. Nd4 {[%clk 0:02:52]}  Bd7 {[%clk 0:02:58]} 10. b3 {[%clk 0:02:46]}  c6 {[%clk 0:02:57]} 11. Bb2 {[%clk 0:02:40]}  Rc8 {[%clk 0:02:52]} 12. Qd2 {[%clk 0:02:26]}  Qf7 {[%clk 0:02:20]} 13. Rac1 {[%clk 0:02:14]}  h6 {[%clk 0:02:16]} 14. Rfe1 {[%clk 0:02:01]}  Nc5 {[%clk 0:01:56]} 15. dxc6 {[%clk 0:00:54]}  bxc6 {[%clk 0:01:52]} 16. e3 {[%clk 0:00:53]}  Nce4 {[%clk 0:01:44]} 17. Qe2 {[%clk 0:00:52]}  Ng4 {[%clk 0:01:24]} 18. f3 {[%clk 0:00:47]}  Nxc3 {[%clk 0:01:17]} 19. Bxc3 {[%clk 0:00:48]}  Ne5 {[%clk 0:01:03]} 20. f4 {[%clk 0:00:40]}  Ng4 {[%clk 0:01:02]} 21. e4 {[%clk 0:00:38]}  e5 {[%clk 0:01:00]} 22. fxe5 {[%clk 0:00:37]}  dxe5 {[%clk 0:01:00]} 23. Nf3 {[%clk 0:00:37]}  f4 {[%clk 0:00:54]} 24. h3 {[%clk 0:00:35]}  Ne3 {[%clk 0:00:51]} 25. Nxe5 {[%clk 0:00:33]}  Bxe5 {[%clk 0:00:43]} 26. Bxe5 {[%clk 0:00:34]}  Nxg2 {[%clk 0:00:44]} 27. Qxg2 {[%clk 0:00:33]}  f3 {[%clk 0:00:44]} 28. Qf2 {[%clk 0:00:33]}  Bxh3 {[%clk 0:00:43]} 29. Rcd1 {[%clk 0:00:27]}  Qe6 {[%clk 0:00:35]} 30. Bf4 {[%clk 0:00:18]}  Rxf4 {[%clk 0:00:29]} 31. gxf4 {[%clk 0:00:17]}  Qg4+ {[%clk 0:00:29]} 32. Kh2 {[%clk 0:00:18]}  Bg2 {[%clk 0:00:27]} 33. Qg3 {[%clk 0:00:18]}  Qh5+ {[%clk 0:00:27]} 34. Kg1 {[%clk 0:00:19]}  Qc5+ {[%clk 0:00:20]} 35. Qf2 {[%clk 0:00:19]}  Qh5 {[%clk 0:00:20]} 36. Qxa7 {[%clk 0:00:18]}  Qh1+ {[%clk 0:00:16]} 37. Kf2 {[%clk 0:00:18]}  Qh4+ {[%clk 0:00:17]} 38. Ke3 {[%clk 0:00:18]}  f2 {[%clk 0:00:16]} 39. Rf1 {[%clk 0:00:14]}  Qg3+ {[%clk 0:00:15]} 40. Kd4 {[%clk 0:00:08]}  Qxf4 {[%clk 0:00:13]} 41. Qd7 {[%clk 0:00:06]}  Qxe4+ {[%clk 0:00:12]} 42. Kc3 {[%clk 0:00:04]}  Qe5+ {[%clk 0:00:12]} 43. Qd4 {[%clk 0:00:03]}  Qxd4+ {[%clk 0:00:12]} 44. Kxd4 {[%clk 0:00:04]}  Bxf1 {[%clk 0:00:12]} 45. Rxf1 {[%clk 0:00:05]}  Rf8 {[%clk 0:00:12]} 46. Ke3 {[%clk 0:00:06]}  g5 {[%clk 0:00:10]} 47. a4 {[%clk 0:00:06]}  g4 {[%clk 0:00:08]} 48. Rxf2 {[%clk 0:00:06]}  Rb8 {[%clk 0:00:09]} 49. Rb2 {[%clk 0:00:03]}  Kf7 {[%clk 0:00:09]} 50. a5 {[%clk 0:00:04]}  Ke6 {[%clk 0:00:07]} 51. b4 {[%clk 0:00:04]}  Kd6 {[%clk 0:00:07]} 52. a6 {[%clk 0:00:04]}  Ra8 {[%clk 0:00:07]} 53. b5 {[%clk 0:00:04]}  cxb5 {[%clk 0:00:07]} 54. cxb5 {[%clk 0:00:05]}  Kc7 {[%clk 0:00:03]} 55. b6+ {[%clk 0:00:06]}  Kb8 {[%clk 0:00:02]} 56. Ra2 {[%clk 0:00:06]}  h5 {[%clk 0:00:02]} 57. Kf4 {[%clk 0:00:06]} 1-0


[Site "https://www.chess.com"]

[Event "Titled Tuesday Blitz December 06 Late 2022"]
[White "Yuan, Qingyu"]
[Black "Arnold, Ken"]
[WhiteFideId "8609772"]
[BlackFideId "2056836"]
[WhiteElo "2359"]
[BlackElo "2403"]
[Result "1-0"]
[Round "01"]
[TimeControl "180+1"]
[Date "2022.12.07"]
[WhiteClock "0:00:02"]
[BlackClock "0:00:02"]

1. e4 {[%clk 0:03:00]}  c6 {[%clk 0:02:59]} 2. d4 {[%clk 0:03:00]}  d5 {[%clk 0:02:59]} 3. e5 {[%clk 0:03:01]}  Bf5 {[%clk 0:02:59]} 4. h4 {[%clk 0:03:02]}  h5 {[%clk 0:02:59]} 5. Bd3 {[%clk 0:03:02]}  Bxd3 {[%clk 0:02:58]} 6. Qxd3 {[%clk 0:03:03]}  e6 {[%clk 0:02:58]} 7. Nf3 {[%clk 0:03:02]}  Qb6 {[%clk 0:02:58]} 8. O-O {[%clk 0:02:57]}  Nd7 {[%clk 0:02:57]} 9. Nbd2 {[%clk 0:02:45]}  Qb5 {[%clk 0:02:52]} 10. c4 {[%clk 0:02:38]}  dxc4 {[%clk 0:02:52]} 11. Nxc4 {[%clk 0:02:35]}  Nb6 {[%clk 0:02:49]} 12. Nd6+ {[%clk 0:02:20]}  Bxd6 {[%clk 0:02:48]} 13. Qxb5 {[%clk 0:02:20]}  cxb5 {[%clk 0:02:48]} 14. exd6 {[%clk 0:02:21]}  Rc8 {[%clk 0:02:35]} 15. Bf4 {[%clk 0:02:13]}  Nf6 {[%clk 0:02:32]} 16. Rac1 {[%clk 0:02:11]}  O-O {[%clk 0:02:31]} 17. Rc5 {[%clk 0:01:58]}  Rxc5 {[%clk 0:02:16]} 18. dxc5 {[%clk 0:01:58]}  Nbd5 {[%clk 0:02:16]} 19. Bd2 {[%clk 0:01:17]}  Nd7 {[%clk 0:02:07]} 20. b4 {[%clk 0:01:14]}  a5 {[%clk 0:01:59]} 21. a3 {[%clk 0:01:08]}  axb4 {[%clk 0:01:58]} 22. axb4 {[%clk 0:01:01]}  Ra8 {[%clk 0:01:57]} 23. Rb1 {[%clk 0:00:40]}  Ra2 {[%clk 0:01:45]} 24. Kf1 {[%clk 0:00:35]}  f6 {[%clk 0:01:37]} 25. Ke1 {[%clk 0:00:34]}  e5 {[%clk 0:01:34]} 26. g3 {[%clk 0:00:33]}  Kf7 {[%clk 0:01:30]} 27. Ng1 {[%clk 0:00:32]}  Ke6 {[%clk 0:01:21]} 28. Ne2 {[%clk 0:00:32]}  Nb8 {[%clk 0:01:14]} 29. Nc1 {[%clk 0:00:32]}  Ra4 {[%clk 0:01:10]} 30. Nd3 {[%clk 0:00:19]}  Nc6 {[%clk 0:01:08]} 31. f3 {[%clk 0:00:19]}  Ra3 {[%clk 0:00:58]} 32. Nc1 {[%clk 0:00:09]}  Rxf3 {[%clk 0:00:52]} 33. Ne2 {[%clk 0:00:10]}  Ra3 {[%clk 0:00:51]} 34. Bc1 {[%clk 0:00:09]}  Ra4 {[%clk 0:00:43]} 35. Bd2 {[%clk 0:00:10]}  Ncxb4 {[%clk 0:00:41]} 36. Bxb4 {[%clk 0:00:07]}  Rxb4 {[%clk 0:00:41]} 37. Rd1 {[%clk 0:00:04]}  Rc4 {[%clk 0:00:21]} 38. Rxd5 {[%clk 0:00:04]}  Kd7 {[%clk 0:00:08]} 39. Kd2 {[%clk 0:00:04]}  Ra4 {[%clk 0:00:07]} 40. Nc3 {[%clk 0:00:05]}  Rg4 {[%clk 0:00:05]} 41. Nxb5 {[%clk 0:00:04]}  Rxg3 {[%clk 0:00:05]} 42. Rd3 {[%clk 0:00:04]}  Rg2+ {[%clk 0:00:05]} 43. Kc3 {[%clk 0:00:04]}  Rg4 {[%clk 0:00:04]} 44. Kb3 {[%clk 0:00:03]}  Rxh4 {[%clk 0:00:03]} 45. Rg3 {[%clk 0:00:04]}  Rg4 {[%clk 0:00:03]} 46. Rh3 {[%clk 0:00:04]}  g6 {[%clk 0:00:03]} 47. Rh1 {[%clk 0:00:04]}  Rg3+ {[%clk 0:00:03]} 48. Kc4 {[%clk 0:00:04]}  g5 {[%clk 0:00:02]} 49. Rf1 {[%clk 0:00:03]}  Rg4+ {[%clk 0:00:02]} 50. Kd5 {[%clk 0:00:02]}  Rf4 {[%clk 0:00:02]} 51. Ra1 {[%clk 0:00:02]} 1-0


[Site "https://www.chess.com"]